bitfinex/quotes_SOLUSD_20251031
["timestamp","ask_amount","ask_price","bid_price","bid_amount"]
[1761871972145,7.6389636,186.77,186.69,9.78882769]
[1761871972454,0.68,186.76,186.7,3.46301741]
[1761871972634,7.6389636,186.71,186.63,9.78882769]
[1761871972843,7.6389636,186.7,186.65,9.78882769]
[1761871973046,7.6389636,186.71,186.66,3.46544719]
[1761871973242,7.6389636,186.69,186.67,3.46544719]
[1761871973566,5.35417893,186.77,186.62,14.11759946]
[1761871973873,7.6389636,186.64,186.63,3.47102236]
[1761871974338,8.3189636,186.64,186.63,3.47102236]
[1761871976351,8.3189636,186.64,186.57,9.78882769]
[1761871976553,8.3189636,186.63,186.57,9.78882769]
[1761871976756,20.592,186.73,186.56,7.6389636]
[1761871976757,0.68,186.68,186.6,7.6389636]
[1761871976952,7.6389636,186.65,186.59,7.6389636]
[1761871977162,7.6389636,186.63,186.58,9.78882769]
[1761871977460,7.6389636,186.62,186.57,14.11759946]
[1761871977766,7.6389636,186.64,186.57,21.75656306]
[1761871977954,8.3189636,186.64,186.58,7.6389636]
[1761871978157,8.3189636,186.64,186.59,4.32877177]
[1761871978657,5.35710828,186.67,186.59,4.32877177]
[1761871978658,7.6389636,186.62,186.59,4.32877177]
[1761871978968,0.66,186.61,186.59,4.32877177]
[1761871979158,8.2989636,186.61,186.58,4.32877177]
[1761871979332,0.66,186.61,186.58,4.32877177]
[1761871979538,0.66,186.6,186.57,4.32877177]
[1761871980355,0.66,186.6,186.58,4.32877177]
[1761871980548,7.6389636,186.59,186.58,4.32877177]
[1761871980757,0.66,186.6,186.55,5.84101293]
[1761871980758,0.66,186.6,186.55,4.32877177]
[1761871981071,18.75471923,186.62,186.49,4.32877177]
[1761871981072,7.6389636,186.56,186.49,4.32877177]
[1761871981359,7.6389636,186.51,186.49,4.32877177]
[1761871981560,7.6389636,186.51,186.45,7.6389636]
[1761871981763,7.6389636,186.52,186.45,7.6389636]
[1761871981944,0.66,186.53,186.45,7.6389636]
[1761871982262,7.6389636,186.54,186.47,7.6389636]
[1761871982458,7.6389636,186.52,186.46,17.42779129]
[1761871982865,8.2989636,186.53,186.47,7.6389636]
[1761871983064,0.66,186.53,186.47,7.6389636]
[1761871983364,5.35819535,186.63,186.49,7.6389636]
[1761871983365,7.6389636,186.55,186.49,7.6389636]
[1761871983545,7.6389636,186.54,186.48,7.6389636]
[1761871983866,7.6389636,186.52,186.47,9.78882769]
[1761871984043,7.6389636,186.53,186.47,9.78882769]
[1761871984242,7.6389636,186.52,186.46,20.592]
[1761871984449,7.6389636,186.49,186.43,38.21979129]
[1761871984661,7.6389636,186.48,186.43,9.98882769]
[1761871984841,8.2989636,186.47,186.43,0.2]
[1761871985367,0.66,186.46,186.43,0.2]
[1761871985876,5.73202043,186.49,186.43,0.2]
[1761871986370,0.66,186.48,186.44,5.07202043]
[1761871986540,5.73202043,186.51,186.44,66.77202043]
[1761871986738,0.66,186.51,186.46,5.07202043]
[1761871987152,0.66,186.51,186.44,9.78882769]
[1761871987369,5.73202043,186.51,186.45,5.07202043]
[1761871987864,5.73202043,186.5,186.43,25.86402043]
[1761871988253,5.07202043,186.49,186.43,5.27202043]
[1761871988450,3.58810721,186.53,186.46,5.07202043]
[1761871988654,0.66,186.52,186.46,5.07202043]
[1761871989156,5.07202043,186.54,186.48,5.07202043]
[1761871989566,5.07202043,186.53,186.47,5.07202043]
[1761871989764,5.73202043,186.53,186.47,9.78882769]
[1761871989977,5.07202043,186.5,186.44,25.66402043]
[1761871990142,5.07202043,186.51,186.44,25.66402043]
[1761871990455,5.07202043,186.55,186.49,5.07202043]
[1761871990655,0.66,186.56,186.49,5.07202043]
[1761871990861,0.66,186.56,186.5,5.07202043]
[1761871991073,0.66,186.58,186.53,5.07202043]
[1761871991566,0.66,186.61,186.55,5.07202043]
[1761871991751,0.66,186.61,186.56,5.07202043]
[1761871992637,5.73202043,186.61,186.55,5.07202043]
[1761871992843,0.66,186.61,186.46,0.53630805]
[1761871993048,5.07202043,186.56,186.49,14.86084812]
[1761871993277,0.66,186.6,186.49,9.78882769]
[1761871993278,5.07202043,186.55,186.49,9.78882769]
[1761871993570,5.73202043,186.56,186.49,14.86084812]
[1761871994004,0.66,186.62,186.55,5.07202043]
[1761871994147,5.73202043,186.62,186.56,5.07202043]
[1761871994340,5.73202043,186.62,186.55,5.07202043]
[1761871994566,5.73202043,186.62,186.56,5.07202043]
[1761871994774,0.66,186.62,186.56,5.07202043]
[1761871994948,5.73202043,186.62,186.56,5.07202043]
[1761871995645,5.73202043,186.62,186.55,5.07202043]
[1761871995848,5.73202043,186.62,186.53,9.78882769]
[1761871996067,5.73202043,186.62,186.55,5.07202043]
[1761871996375,5.07202043,186.58,186.52,20.592]
[1761871996543,5.07202043,186.57,186.5,25.66402043]
[1761871996750,0.72,186.6,186.51,5.07202043]
[1761871996950,0.72,186.65,186.52,14.86084812]
[1761871997150,0.72,186.64,186.53,5.07202043]
[1761871997353,5.07202043,186.6,186.52,9.78882769]
[1761871997565,0.72,186.64,186.52,5.07202043]
[1761871997566,5.07202043,186.59,186.52,5.07202043]
[1761871998080,5.79202043,186.59,186.52,5.07202043]
[1761871998281,0.72,186.59,186.52,5.07202043]
[1761871998446,3.58466933,186.69,186.58,5.07202043]
[1761871998648,0.72,186.72,186.62,10.07315083]
[1761871998876,0.72,186.72,186.68,5.07202043]
[1761871999041,0.72,186.72,186.66,9.78882769]
[1761871999245,0.72,186.72,186.65,0.53576212]
[1761871999442,3.58466933,186.8,186.71,5.07202043]
[1761871999671,0.72,186.8,186.67,21.12770471]
[1761871999980,5.07202043,186.76,186.69,5.07202043]
[1761872000148,0.72,186.75,186.67,20.592]
[1761872000353,0.72,186.75,186.69,5.07202043]
[1761872000654,5.79202043,186.75,186.68,5.07202043]
[1761872000862,5.79202043,186.75,186.69,5.07202043]
[1761872001077,0.72,186.75,186.69,5.07202043]
[1761872001266,5.79202043,186.75,186.69,5.07202043]
[1761872001464,5.07202043,186.73,186.66,5.07202043]
[1761872001872,0.72,186.72,186.65,20.592]
[1761872002054,5.79202043,186.72,186.65,25.66402043]
[1761872002267,0.72,186.72,186.66,5.07202043]
[1761872002464,5.79202043,186.72,186.65,5.07202043]
[1761872002985,5.07202043,186.7,186.63,5.07202043]
[1761872003178,0.72,186.69,186.63,5.07202043]
[1761872003375,5.79202043,186.69,186.63,5.07202043]
[1761872003679,5.79202043,186.69,186.62,11.96301042]
[1761872003880,0.72,186.69,186.63,5.07202043]
[1761872004270,5.79202043,186.69,186.62,6.89098999]
[1761872004466,0.72,186.69,186.63,5.07202043]
[1761872004875,0.72,186.69,186.64,5.07202043]
[1761872005065,0.72,186.69,186.63,5.07202043]
[1761872005678,0.72,186.69,186.64,5.07202043]
[1761872006463,0.72,186.69,186.63,5.07202043]
[1761872006659,5.79202043,186.69,186.62,6.89098999]
[1761872006974,0.72,186.68,186.63,5.07202043]
[1761872007182,5.07202043,186.71,186.64,5.07202043]
[1761872007568,0.72,186.7,186.64,5.07202043]
[1761872008179,0.72,186.7,186.65,5.07202043]
[1761872008391,0.72,186.7,186.64,5.07202043]
[1761872009294,5.79202043,186.73,186.67,5.07202043]
[1761872009589,5.79202043,186.73,186.66,5.07202043]
[1761872009763,5.07202043,186.73,186.66,5.07202043]
[1761872009963,5.79202043,186.73,186.63,10.32464722]
[1761872010178,5.79202043,186.73,186.67,5.07202043]
[1761872010782,5.07202043,186.73,186.67,5.07202043]
[1761872010983,0.72,186.72,186.67,5.07202043]
[1761872011484,0.72,186.72,186.66,5.07202043]
[1761872011874,0.72,186.72,186.67,5.07202043]
[1761872012274,0.72,186.72,186.66,5.07202043]
[1761872013178,0.72,186.72,186.63,10.32464722]
[1761872013394,0.72,186.72,186.66,5.07202043]
[1761872015178,5.35217298,186.84,186.69,5.07202043]
[1761872015366,5.79202043,186.74,186.67,5.07202043]
[1761872015678,0.72,186.74,186.68,5.07202043]
[1761872016104,5.79202043,186.74,186.67,5.07202043]
[1761872016281,5.07202043,186.7,186.62,6.89098999]
[1761872016483,5.35561268,186.72,186.62,6.89098999]
[1761872016786,27.66402042,186.78,186.62,6.89098999]
[1761872016787,5.07202043,186.68,186.62,6.89098999]
[1761872017108,5.07202043,186.67,186.62,6.89098999]
[1761872017474,0.72,186.66,186.62,11.96301042]
[1761872018483,5.79202043,186.66,186.62,6.89098999]
[1761872018795,5.07202043,186.64,186.62,6.89098999]
[1761872019188,0.72,186.63,186.62,6.89098999]
[1761872020673,5.07202043,186.66,186.62,6.89098999]
[1761872020975,5.79202043,186.65,186.62,6.89098999]
[1761872021183,0.72,186.65,186.62,6.89098999]
[1761872021773,5.79202043,186.67,186.62,6.89098999]
[1761872021976,5.07202043,186.67,186.62,6.89098999]
[1761872022294,0.72,186.66,186.62,6.89098999]
[1761872022799,5.35633793,186.7,186.63,5.07202043]
[1761872022800,5.07202043,186.69,186.63,5.07202043]
[1761872023175,0.72,186.69,186.63,5.07202043]
[1761872023376,5.79202043,186.68,186.62,6.89098999]
[1761872023593,5.07202043,186.67,186.62,6.89098999]
[1761872023795,5.79202043,186.66,186.62,6.89098999]
[1761872023973,5.07202043,186.65,186.62,6.89098999]
[1761872024175,0.72,186.65,186.62,6.89098999]
[1761872024380,0.72,186.64,186.62,6.89098999]
[1761872024589,5.07202043,186.66,186.62,6.89098999]
[1761872024782,0.72,186.65,186.62,6.89098999]
[1761872026989,5.79202043,186.65,186.62,6.89098999]
[1761872027388,5.07202043,186.63,186.62,6.89098999]
[1761872027876,0.72,186.63,186.62,6.89098999]
[1761872029001,0.72,186.66,186.62,6.89098999]
[1761872029208,5.07202043,186.67,186.62,6.89098999]
[1761872029499,5.07202043,186.69,186.63,5.07202043]
[1761872029904,5.79202043,186.68,186.62,6.89098999]
[1761872030279,0.72,186.67,186.62,6.89098999]
[1761872030702,8.93426294,186.73,186.62,11.96301042]
[1761872030881,0.72,186.66,186.62,11.96301042]
[1761872031090,5.35546136,186.73,186.63,5.07202043]
[1761872031091,0.72,186.72,186.63,5.07202043]
[1761872031291,5.07202043,186.69,186.62,11.96301042]
[1761872031781,0.72,186.68,186.62,11.96301042]
[1761872032098,5.79202043,186.68,186.62,6.89098999]
[1761872032482,0.72,186.67,186.62,6.89098999]
[1761872033002,0.72,186.67,186.62,11.96301042]
[1761872033996,0.72,186.67,186.62,6.89098999]
[1761872036406,0.72,186.67,186.62,11.96301042]
[1761872037908,5.07202043,186.66,186.62,6.89098999]
[1761872038287,0.72,186.65,186.62,6.89098999]
[1761872039292,5.79202043,186.65,186.62,6.89098999]
[1761872039809,0.71,186.64,186.62,6.89098999]
[1761872040110,5.07202043,186.63,186.62,6.17098999]
[1761872040502,5.78202043,186.63,186.62,6.17098999]
[1761872040905,11.14021578,186.63,186.62,6.17098999]
[1761872041711,24.51910091,186.63,186.62,5.45098999]
[1761872041918,9.78882769,186.62,186.48,0.68]
[1761872042204,5.07202043,186.54,186.48,5.75202043]
[1761872042895,5.78202043,186.55,186.48,5.75202043]
[1761872043098,5.07202043,186.54,186.48,5.75202043]
[1761872043398,5.07202043,186.52,186.46,0.68]
[1761872043611,0.71,186.53,186.46,0.68]
[1761872043818,5.35996234,186.57,186.45,5.07202043]
[1761872043819,5.07202043,186.51,186.45,5.07202043]
[1761872044129,0.71,186.56,186.44,5.07202043]
[1761872044338,5.07202043,186.51,186.45,5.07202043]
[1761872044549,5.07202043,186.5,186.44,5.07202043]
[1761872044708,5.07202043,186.5,186.43,0.88]
[1761872044905,5.07202043,186.48,186.43,0.2]
[1761872045321,8.36233156,186.48,186.43,0.2]
[1761872045518,8.36233156,186.47,186.43,0.2]
[1761872045904,8.36233156,186.46,186.43,0.2]
[1761872046421,0.71,186.45,186.43,0.2]
[1761872046642,8.36233156,186.45,186.43,0.2]
[1761872046831,7.65233156,186.44,186.43,0.2]
[1761872047007,8.36233156,186.44,186.43,0.2]
[1761872047852,20.592,186.5,186.43,0.2]
[1761872048009,8.36233156,186.44,186.43,0.2]
[1761872051127,0.71,186.44,186.43,0.2]
[1761872051312,8.36233156,186.44,186.43,0.2]
[1761872051509,3.5821108,186.51,186.43,0.2]
[1761872051510,0.71,186.48,186.43,0.2]
[1761872051723,7.65233156,186.46,186.43,0.2]
[1761872051927,7.65233156,186.45,186.43,0.2]
[1761872052228,9.78882769,186.53,186.43,0.2]
[1761872052229,0.71,186.49,186.43,0.2]
[1761872052430,7.65233156,186.46,186.43,0.2]
[1761872052919,8.36233156,186.46,186.43,0.2]
[1761872053116,0.71,186.45,186.43,0.2]
[1761872053317,8.36233156,186.46,186.43,0.2]
[1761872054127,8.36233156,186.48,186.43,0.2]
[1761872054329,8.36233156,186.48,186.43,0.88]
[1761872054638,0.71,186.48,186.43,0.88]
[1761872055311,0.71,186.48,186.43,0.2]
[1761872055728,33.9943117,186.54,186.43,0.88]
[1761872055729,5.36157501,186.52,186.43,0.88]
[1761872055904,7.65233156,186.49,186.43,0.88]
[1761872056431,7.65233156,186.48,186.43,0.2]
[1761872056612,0.71,186.48,186.43,0.2]
[1761872057109,8.36233156,186.48,186.43,0.2]
[1761872057630,7.65233156,186.46,186.43,0.2]
[1761872057830,8.36233156,186.46,186.43,0.2]
[1761872058128,7.65233156,186.44,186.43,0.2]
[1761872058627,8.36233156,186.44,186.43,0.2]
[1761872059624,0.71,186.44,186.43,0.2]
[1761872060024,8.36233156,186.44,186.43,0.2]
[1761872061435,0.71,186.44,186.43,0.2]
[1761872061739,8.36233156,186.44,186.43,0.2]
[1761872062644,6.07365586,186.44,186.43,0.2]
[1761872062939,7.65233156,186.4,186.39,0.2]
[1761872063237,8.36233156,186.4,186.39,0.2]
[1761872063436,13.72713842,186.4,186.39,0.2]
[1761872066522,8.36233156,186.4,186.39,0.2]
[1761872066745,13.72713842,186.4,186.39,0.2]
[1761872069654,8.36233156,186.4,186.39,0.2]
[1761872069855,0.71,186.4,186.39,0.2]
[1761872070034,8.36233156,186.4,186.39,0.2]
[1761872070850,13.72713842,186.4,186.39,0.2]
[1761872071242,13.01713842,186.4,186.39,0.2]
[1761872071450,7.65233156,186.4,186.39,0.2]
[1761872072554,8.32233156,186.4,186.39,0.2]
[1761872073539,13.68713842,186.4,186.39,0.2]
[1761872075358,7.65233156,186.31,186.28,0.69]
[1761872075862,7.65233156,186.37,186.3,7.65233156]
[1761872076358,7.65233156,186.35,186.31,0.69]
[1761872077457,7.65233156,186.35,186.32,0.69]
[1761872078256,7.65233156,186.35,186.3,0.69]
[1761872078754,8.92898431,186.36,186.3,0.69]
[1761872078755,11.2151782,186.38,186.3,0.69]
[1761872079054,7.65233156,186.37,186.31,7.65233156]
[1761872079357,7.65233156,186.36,186.3,8.34233156]
[1761872079544,7.65233156,186.37,186.31,7.65233156]
[1761872079750,7.65233156,186.37,186.32,0.69]
[1761872080461,11.22476905,186.37,186.32,0.69]
[1761872080642,7.65233156,186.37,186.32,0.69]
[1761872081460,3.57591666,186.36,186.32,0.69]
[1761872081667,7.65233156,186.37,186.32,0.69]
[1761872081871,3.57591557,186.36,186.32,0.69]
[1761872082065,13.0180384,186.37,186.32,0.69]
[1761872082375,3.57610569,186.36,186.32,0.69]
[1761872082542,3.57610569,186.35,186.32,0.69]
[1761872082746,4.46942712,186.4,186.33,7.65233156]
[1761872082943,3.58009895,186.39,186.33,7.65233156]
[1761872083246,3.58009895,186.38,186.34,0.69]
[1761872083443,3.58009895,186.37,186.34,0.69]
[1761872083653,3.58009895,186.36,186.34,0.69]
[1761872083857,3.58009895,186.35,186.34,0.69]
[1761872084053,7.65233156,186.4,186.34,8.34233156]
[1761872084262,3.5838086,186.39,186.34,8.34233156]
[1761872084476,7.65233156,186.4,186.34,8.34233156]
[1761872084477,3.5838086,186.38,186.35,0.69]
[1761872084777,3.5838086,186.37,186.35,0.69]
[1761872084970,3.5838086,186.36,186.35,0.69]
[1761872086069,3.5838086,186.36,186.35,8.34233156]
[1761872086269,4.46942712,186.43,186.35,8.34233156]
[1761872086474,3.59151895,186.42,186.37,7.65233156]
[1761872086662,3.59151895,186.41,186.37,7.65233156]
[1761872086856,3.59151895,186.4,186.38,0.69]
[1761872087062,3.59151895,186.39,186.38,0.69]
[1761872088855,3.59151895,186.39,186.36,0.69]
[1761872089048,3.59151895,186.38,186.37,0.69]
[1761872089449,3.59151895,186.38,186.35,0.69]
[1761872089650,3.59151895,186.37,186.33,82.982]
[1761872089849,3.59151895,186.36,186.33,82.982]
[1761872090051,3.59151895,186.35,186.33,82.982]
[1761872090257,3.11450106,186.37,186.34,0.69]
[1761872090458,3.60090575,186.36,186.34,65.50450106]
[1761872090657,7.58392818,186.41,186.34,65.50450106]
[1761872090874,3.60064326,186.4,186.35,0.69]
[1761872091059,3.60064326,186.39,186.35,0.69]
[1761872091278,3.60064326,186.38,186.35,0.69]
[1761872091456,3.60064326,186.37,186.35,62.39]
[1761872091780,3.60064326,186.36,186.35,64.81450106]
[1761872092494,7.58392818,186.41,186.35,64.81450106]
[1761872092668,3.60199015,186.4,186.36,0.69]
[1761872092867,3.60199015,186.39,186.36,0.69]
[1761872093075,3.60199015,186.38,186.36,0.69]
[1761872093255,3.60199015,186.37,186.36,0.69]
[1761872095360,3.11450106,186.41,186.36,0.69]
[1761872095688,3.60320804,186.4,186.36,0.69]
[1761872095863,3.60320804,186.39,186.36,0.69]
[1761872096182,3.60320804,186.38,186.36,0.69]
[1761872096486,0.67,186.41,186.36,0.69]
[1761872096780,3.6035931,186.4,186.36,0.69]
[1761872096980,3.6035931,186.39,186.36,0.69]
[1761872097180,0.67,186.41,186.36,0.69]
[1761872097387,3.60434253,186.4,186.36,0.69]
[1761872097591,3.60434253,186.39,186.36,0.69]
[1761872097888,0.67,186.41,186.36,0.69]
[1761872098182,3.60434218,186.4,186.36,0.69]
[1761872098483,3.60434218,186.39,186.36,0.69]
[1761872098685,3.60434218,186.4,186.36,0.69]
[1761872098860,3.60434218,186.39,186.36,0.69]
[1761872099059,3.78450106,186.41,186.36,0.69]
[1761872099366,4.31629749,186.4,186.35,3.11450106]
[1761872099667,3.11450106,186.37,186.31,3.11450106]
[1761872099860,3.11450106,186.37,186.31,3.77450106]
[1761872100062,3.82450106,186.38,186.32,0.66]
[1761872100684,4.46942712,186.43,186.32,0.66]
[1761872100685,3.82450106,186.37,186.32,0.66]
[1761872100883,0.71,186.37,186.26,61.7]
[1761872101085,3.11450106,186.33,186.28,0.66]
[1761872101685,7.43514995,186.32,186.26,62.36]
[1761872101988,3.11450106,186.31,186.25,3.11450106]
[1761872102188,3.11450106,186.28,186.24,0.2]
[1761872102379,3.11450106,186.29,186.24,0.2]
[1761872102583,3.82450106,186.29,186.24,0.2]
[1761872102894,6.72624994,186.28,186.24,0.2]
[1761872103187,3.11450106,186.28,186.24,0.2]
[1761872103367,3.11450106,186.27,186.24,0.2]
[1761872103898,3.11450106,186.26,186.24,0.2]
[1761872104072,3.82450106,186.26,186.24,0.2]
[1761872104298,3.11450106,186.26,186.24,0.2]
[1761872104701,3.61152004,186.28,186.25,3.77450106]
[1761872105003,3.11450106,186.3,186.25,0.66]
[1761872105694,3.60858947,186.31,186.25,0.66]
[1761872105925,6.72309053,186.31,186.25,0.66]
[1761872106089,7.43309053,186.31,186.25,0.66]
[1761872106296,4.31858947,186.31,186.26,3.11450106]
[1761872106608,4.31858947,186.31,186.26,3.77450106]
[1761872106786,3.82450106,186.3,186.24,0.2]
[1761872106983,3.11450106,186.28,186.24,0.2]
[1761872107213,0.71,186.27,186.24,0.2]
[1761872108087,2.7061794,186.27,186.24,0.2]
[1761872108304,1.9961794,186.25,186.24,0.2]
[1761872108787,0.71,186.25,186.24,0.2]
[1761872108990,4.31864701,186.28,186.24,0.2]
[1761872109196,0.71,186.28,186.24,0.2]
[1761872109389,5.60482641,186.29,186.24,0.2]
[1761872109390,0.71,186.27,186.24,0.2]
[1761872109590,1.9961794,186.29,186.24,0.2]
[1761872109790,0.71,186.28,186.24,0.2]
[1761872109988,2.7061794,186.28,186.24,0.2]
[1761872110206,1.9961794,186.27,186.24,0.2]
[1761872110409,2.7061794,186.27,186.24,0.2]
[1761872110895,2.7061794,186.26,186.24,0.2]
[1761872111291,0.71,186.25,186.24,0.2]
[1761872111509,2.7061794,186.25,186.24,0.2]
[1761872112119,0.71,186.25,186.24,0.2]
[1761872113412,2.7061794,186.25,186.24,0.2]
[1761872114704,8.07530691,186.25,186.24,0.2]
[1761872115015,2.7061794,186.25,186.24,0.2]
[1761872116002,8.07530691,186.25,186.24,0.2]
[1761872116518,17.8641346,186.25,186.24,0.2]
[1761872118205,38.4561346,186.25,186.24,1e-08]
[1761872118408,30.27460759,186.25,186.23,6.89098999]
[1761872118614,12.50500709,186.24,186.23,6.89098999]
[1761872118804,12.50500709,186.24,186.23,1e-08]
[1761872118805,16.1009977,186.24,186.23,1e-08]
[1761872119005,16.10119319,186.24,186.23,1e-08]
[1761872119417,12.50500709,186.24,186.23,1e-08]
[1761872119725,20.48972469,186.24,186.23,1e-08]
[1761872119927,25.85914049,186.24,186.23,1e-08]
[1761872120624,9.78882769,186.23,186.2,0.2]
[1761872120829,19.76972469,186.21,186.2,0.2]
[1761872121218,18.79295531,186.24,186.2,0.2]
[1761872121413,1.9961794,186.21,186.2,0.2]
[1761872121832,2.7161794,186.21,186.2,0.2]
[1761872122032,8.08646026,186.21,186.2,0.2]
[1761872123530,0.72,186.25,186.2,0.2]
[1761872123828,1.9961794,186.23,186.2,0.92]
[1761872124031,1.9961794,186.23,186.2,0.2]
[1761872124232,1.9961794,186.23,186.2,0.92]
[1761872124607,1.9961794,186.24,186.2,0.92]
[1761872125934,2.7161794,186.24,186.2,0.92]
[1761872126312,2.7161794,186.24,186.2,0.2]
[1761872126615,1.9961794,186.21,186.2,0.2]
[1761872126818,0.72,186.23,186.2,0.2]
[1761872126819,1.9961794,186.22,186.2,0.2]
[1761872127034,7.36646026,186.21,186.2,0.2]
[1761872128619,5.36965183,186.24,186.2,0.2]
[1761872128940,1.9961794,186.22,186.2,0.2]
[1761872129534,2.6561794,186.22,186.2,0.2]
[1761872130235,8.02638162,186.22,186.2,0.2]
[1761872130733,0.66,186.21,186.2,0.2]
[1761872130936,2.6561794,186.21,186.2,0.2]
[1761872132141,8.02646026,186.21,186.2,0.2]
[1761872132941,6.03028086,186.21,186.2,0.2]
[1761872133144,8.02646026,186.21,186.2,0.2]
[1761872134530,17.81528795,186.21,186.2,0.2]
[1761872134725,25.80000555,186.21,186.2,0.2]
[1761872134925,25.80000555,186.21,186.13,0.2]
[1761872134926,30.38082769,186.2,186.13,0.2]
[1761872135127,1.9961794,186.14,186.13,0.2]
[1761872135539,2.6561794,186.14,186.13,0.2]
[1761872135725,0.66,186.14,186.13,0.2]
[1761872135926,8.02847981,186.14,186.13,0.2]
[1761872136133,7.36847981,186.14,186.13,0.2]
[1761872136334,8.02847981,186.14,186.13,0.2]
[1761872137454,6.03230041,186.14,186.13,0.2]
[1761872137758,8.02847981,186.14,186.13,0.2]
[1761872138324,17.8173075,186.14,186.13,0.2]
[1761872138858,15.8211281,186.14,186.13,0.2]
[1761872139037,5.372055,186.15,186.13,0.2]
[1761872139236,1.9961794,186.14,186.13,0.2]
[1761872139443,2.6561794,186.14,186.13,0.2]
[1761872139840,1.9961794,186.14,186.13,0.2]
[1761872140036,7.36847981,186.14,186.13,0.2]
[1761872140439,7.36847981,186.14,186.03,5.5323588]
[1761872140440,20.592,186.06,186.03,5.5323588]
[1761872140641,20.592,186.06,185.98,0.67]
[1761872140642,1.9961794,186.04,185.98,0.67]
[1761872140955,1.9961794,186.02,185.98,0.67]
[1761872141637,3.5907114,186.05,186.01,0.87]
[1761872141861,1.9961794,186.04,186.01,0.87]
[1761872142160,1.9961794,186.04,186.01,0.2]
[1761872142161,5.37547707,186.03,186.01,0.2]
[1761872142362,1.9961794,186.02,186.01,0.2]
[1761872142567,1.9961794,186.03,186.01,0.87]
[1761872142753,1.9961794,186.02,186.01,0.87]
[1761872143881,7.37194544,186.02,186.01,0.2]
[1761872144286,8.03194544,186.02,186.01,0.2]
[1761872144868,1.9961794,186.02,186.01,0.2]
[1761872145888,7.37194544,186.02,186.01,0.2]
[1761872146284,5.37548025,186.03,186.01,0.2]
[1761872146585,1.9961794,186.02,186.01,0.2]
[1761872147874,5.37576604,186.02,186.01,0.2]
[1761872148174,7.37194544,186.02,186.01,0.2]
[1761872150677,3.58410565,186.03,186.01,0.87]
[1761872150881,1.9961794,186.02,186.01,0.2]
[1761872152781,7.37194544,186.02,186.01,0.2]
[1761872153583,1.9961794,186.02,186.01,0.87]
[1761872154655,5.37576604,186.02,186.01,0.2]
[1761872154854,7.37194544,186.02,186.01,0.87]
[1761872156362,7.37194544,186.02,186.01,0.2]
[1761872157787,8.03194544,186.02,186.01,0.2]
[1761872158077,7.37194544,186.02,186.01,0.2]
[1761872160504,1.9961794,186.02,186.01,0.87]
[1761872160669,7.37194544,186.02,186.01,0.87]
[1761872161179,7.37194544,186.02,186.01,0.2]
[1761872161886,17.16077313,186.02,186.01,0.2]
[1761872162674,17.83077313,186.02,186.01,0.2]
[1761872163168,9.78882769,186.03,186.01,0.2]
[1761872163369,1.9961794,186.02,186.01,0.2]
[1761872164887,12.45500709,186.02,186.01,0.2]
[1761872165085,17.16077313,186.02,186.01,0.2]
[1761872165963,7.37194544,186.02,186.01,0.2]
[1761872168598,5.37576604,186.02,186.01,0.87]
[1761872169891,5.3755233,186.03,186.01,0.87]
[1761872170195,5.3755233,186.03,186.02,0.67]
[1761872170690,20.592,186.05,186.02,0.67]
[1761872170894,25.96691952,186.05,186.02,0.67]
[1761872171793,8.50009641,186.14,186.04,3.127796]
[1761872171999,3.127796,186.13,186.06,3.127796]
[1761872172174,3.127796,186.13,186.03,3.127796]
[1761872172175,3.127796,186.11,186.04,3.127796]
[1761872172375,3.127796,186.11,186.05,0.67]
[1761872172601,3.127796,186.11,186.05,6.04230041]
[1761872172897,3.58218187,186.13,186.05,6.04230041]
[1761872173083,3.127796,186.11,186.06,0.67]
[1761872173287,3.127796,186.12,186.06,0.67]
[1761872173798,5.3731664,186.11,186.06,0.67]
[1761872174700,8.5009624,186.11,186.06,0.67]
[1761872175600,5.3731664,186.11,186.06,0.67]
[1761872175775,8.5009624,186.11,186.06,0.67]
[1761872176582,12.08314427,186.11,186.06,0.67]